bitfinex-derivatives/quotes_SOLF0:USTF0_20250206
["timestamp","ask_amount","ask_price","bid_price","bid_amount"]
[1738865815723,5.2528,190.31,190.27,0.03390928]
[1738865817228,19.38946733,190.3,190.27,0.03390928]
[1738865818731,5.2536,190.28,190.27,0.03390928]
[1738865819431,19.38946733,190.3,190.15,183.09891031]
[1738865819630,19.38946733,190.27,190.19,5.2559]
[1738865820028,1.6299,190.27,190.15,1.6642]
[1738865820231,1.6299,190.27,190.16,19.38946733]
[1738865820630,0.03384099,190.23,190.21,5.2556]
[1738865820826,1.5527,190.32,190.16,19.38946733]
[1738865821031,0.03350315,190.24,190.2,0.0338496]
[1738865821226,1.5527,190.32,190.27,5.2538]
[1738865821431,19.38946733,190.36,190.22,19.38946733]
[1738865821728,1.5527,190.37,190.3,5.2529]
[1738865821928,1.5527,190.37,190.23,3.3021]
[1738865822228,1.5527,190.37,190.25,19.38946733]
[1738865822432,19.38946733,190.39,190.33,5.2522]
[1738865822632,19.38946733,190.39,190.28,0.03551648]
[1738865822829,19.38946733,190.39,190.25,19.38946733]
[1738865823028,19.38946733,190.39,190.32,5.29095484]
[1738865823337,19.38946733,190.36,190.32,0.03865484]
[1738865823634,19.38946733,190.33,190.23,3.3021]
[1738865823834,19.38946733,190.33,190.23,1.6523]
[1738865824333,5.2526,190.32,190.24,5.2545]
[1738865824534,5.2526,190.32,190.23,1.6523]
[1738865824833,5.2537,190.28,190.26,0.03345743]
[1738865825035,19.42356959,190.3,190.26,0.03345743]
[1738865825233,0.03410226,190.3,190.26,0.03345743]
[1738865825428,0.03410226,190.3,190.26,5.28755743]
[1738865825633,0.03410226,190.3,190.26,0.03345743]
[1738865827438,19.38946733,190.39,190.26,0.03345743]
[1738865827634,19.38946733,190.39,190.26,3.1099]
[1738865827834,19.38946733,190.36,190.26,3.1099]
[1738865828027,24.64116733,190.36,190.29,5.2533]
[1738865828229,19.38946733,190.36,190.26,1.5304]
[1738865828527,19.38946733,190.36,190.2,183.10471031]
[1738865828528,5.2526,190.32,190.29,0.03435607]
[1738865828727,5.2526,190.32,190.24,5.2545]
[1738865828728,5.2526,190.32,190.21,1.5795]
[1738865829030,19.38946733,190.3,190.2,1.67]
[1738865829336,19.38946733,190.3,190.25,0.03545255]
[1738865829535,4.38,190.31,190.25,0.03545255]
[1738865830231,9.6332,190.31,190.25,0.03545255]
[1738865830530,4.38,190.31,190.25,0.03545255]
[1738865830734,5.2544,190.27,190.25,0.03545255]
[1738865830938,19.38946733,190.28,190.19,5.2562]
[1738865831331,24.64366733,190.28,190.19,5.2562]
[1738865831529,19.38946733,190.28,190.14,3.1544]
[1738865831934,24.64366733,190.28,190.2,5.2559]
[1738865832229,0.03689863,190.23,190.2,5.2559]
[1738865832533,0.03689863,190.23,190.19,0.03474846]
[1738865833235,0.03689863,190.23,190.19,5.29084846]
[1738865834337,0.03689863,190.23,190.2,5.2561]
[1738865834536,24.64076733,190.38,190.2,19.38946733]
[1738865834737,19.38946733,190.42,190.26,19.38946733]
[1738865835034,19.38946733,190.42,190.27,1.5806]
[1738865835837,23.78946733,190.42,190.33,0.03480952]
[1738865836032,1.6033,190.44,190.33,0.03480952]
[1738865836232,1.6033,190.44,190.36,5.2516]
[1738865836538,1.6033,190.44,190.38,0.03932759]
[1738865837437,1.6033,190.44,190.39,5.2506]
[1738865839837,1.6033,190.44,190.38,0.03932759]
[1738865841940,19.38946733,190.42,190.38,0.03932759]
[1738865842141,1.6033,190.44,190.38,0.03932759]
[1738865842641,19.38946733,190.45,190.38,0.03932759]
[1738865843040,24.63876733,190.45,190.38,5.29042759]
[1738865843942,5.2495,190.44,190.38,0.03932759]
[1738865844242,4.36,190.47,190.38,0.03932759]
[1738865844943,5.2493,190.45,190.38,5.29022759]
[1738865845139,4.36,190.47,190.38,0.03932759]
[1738865845938,10.17386733,190.48,190.47,5.2487]
[1738865846142,19.38946733,190.55,190.38,19.38946733]
[1738865846443,19.38946733,190.55,190.46,0.03710821]
[1738865846744,19.38946733,190.71,190.42,3.3101]
[1738865846745,23.76946733,190.58,190.42,3.3101]
[1738865846940,19.38946733,190.58,190.49,0.03601262]
[1738865847137,5.2465,190.55,190.49,0.03601262]
[1738865847345,19.38946733,190.58,190.49,0.03601262]
[1738865848137,19.38946733,190.61,190.49,0.03601262]
[1738865848341,23.76946733,190.61,190.49,0.03601262]
[1738865848541,5.2454,190.59,190.49,5.2481]
[1738865848742,23.76946733,190.61,190.53,0.03808427]
[1738865849049,5.2454,190.59,190.53,0.03808427]
[1738865849543,23.76946733,190.61,190.53,0.03808427]
[1738865850143,5.2459,190.58,190.53,0.03808427]
[1738865850442,19.38946733,190.57,190.53,0.03808427]
[1738865850837,19.38946733,190.54,190.53,8.427e-05]
[1738865851038,19.38946733,190.54,190.42,3.3101]
[1738865851243,19.38946733,190.5,190.33,1.6605]
[1738865851444,5.2501,190.42,190.33,10.1161]
[1738865851742,19.38946733,190.47,190.33,4.8636]
[1738865851938,5.2504,190.41,190.33,4.8636]
[1738865852242,0.03963445,190.42,190.38,0.0402667]
[1738865852745,19.38946733,190.56,190.41,19.38946733]
[1738865852937,193.0,190.66,190.42,1.5587]
[1738865853240,5.2466,190.55,190.46,5.249]
[1738865853438,5.2466,190.55,190.44,19.38946733]
[1738865853942,5.2466,190.55,190.48,0.03933099]
[1738865854644,23.76946733,190.61,190.48,0.03933099]
[1738865854841,23.76946733,190.61,190.44,19.38946733]
[1738865855041,23.76946733,190.61,190.53,0.03486675]
[1738865855244,5.2468,190.54,190.53,0.03486675]
[1738865857041,1.6471,190.6,190.53,0.03486675]
[1738865857238,4.36,190.59,190.53,0.03486675]
[1738865857443,19.38946733,190.54,190.42,3.2192]
[1738865857940,5.2484,190.49,190.42,3.2192]
[1738865858145,19.38946733,190.54,190.42,3.2192]
[1738865858545,5.2481,190.5,190.42,3.2192]
[1738865858745,0.03701537,190.5,190.46,0.0364164]
[1738865859742,19.38946733,190.48,190.37,1.6606]
[1738865859943,19.38946733,190.45,190.36,3.2284]
[1738865860243,5.251,190.39,190.3,1.6649]
[1738865860443,5.251,190.39,190.3,3.3259]
[1738865860940,5.251,190.39,190.33,0.03354581]
[1738865861145,0.04021344,190.36,190.33,0.03354581]
[1738865864047,0.04021344,190.36,190.35,5.2519]
[1738865864345,5.2497,190.44,190.33,34.90849792]
[1738865865139,5.2493,190.46,190.37,5.2514]
[1738865865445,0.03914475,190.4,190.37,5.2514]
[1738865865745,6.0046,190.48,190.37,5.2514]
[1738865865943,0.03446457,190.4,190.37,5.28822309]
[1738865866246,0.0398192,190.4,190.37,5.28822309]
[1738865866946,0.0398192,190.4,190.37,0.03682309]
[1738865867144,5.249,190.47,190.37,0.03682309]
[1738865867447,4.34,190.48,190.37,0.03682309]
[1738865867846,5.2491,190.46,190.39,5.2509]
[1738865868350,5.2491,190.46,190.41,0.03844642]
[1738865868848,9.5887,190.48,190.41,0.03844642]
[1738865869146,46.95498528,190.53,190.41,0.03844642]
[1738865869344,5.2477,190.51,190.44,5.2495]
[1738865869550,12.08003317,190.55,190.4,1.6226]
[1738865869847,12.08003317,190.55,190.45,0.03771544]
[1738865870351,1.5217,190.56,190.47,5.2485]
[1738865870950,1.5217,190.56,190.5,0.03370066]
[1738865871141,5.2465,190.55,190.5,0.03370066]
[1738865871451,39.17495211,190.59,190.5,0.03370066]
[1738865871650,5.2462,190.57,190.5,0.03370066]
[1738865871852,39.17495211,190.59,190.5,0.03370066]
[1738865872349,5.2465,190.55,190.5,0.03370066]
[1738865872849,5.2462,190.57,190.5,0.03370066]
[1738865873047,39.17495211,190.59,190.5,0.03370066]
[1738865873248,4.3,190.58,190.5,0.03370066]
[1738865874949,34.87495211,190.59,190.5,0.03370066]
[1738865874950,39.17495211,190.59,190.5,0.03370066]
[1738865875148,34.87495211,190.62,190.5,0.03370066]
[1738865875349,4.3,190.61,190.5,0.03370066]
[1738865875552,4.3,190.61,190.5,5.2477]
[1738865875749,4.28,190.61,190.54,0.03860136]
[1738865875950,5.246,190.57,190.54,0.03860136]
[1738865876652,5.2465,190.55,190.54,0.03860136]
[1738865877252,28.99185424,190.57,190.54,0.03860136]
[1738865877948,5.2465,190.55,190.54,0.03860136]
[1738865878647,28.99185424,190.57,190.46,6.9317]
[1738865878849,5.2472,190.53,190.46,6.9317]
[1738865879652,5.2477,190.51,190.44,5.2495]
[1738865880052,0.03357079,190.51,190.48,0.03317754]
[1738865880356,5.2482,190.5,190.48,0.03317754]
[1738865880557,0.03357079,190.51,190.48,0.03317754]
[1738865881449,0.03357079,190.51,190.5,5.2479]
[1738865881856,0.03357079,190.51,190.48,0.03317754]
[1738865882860,0.03357079,190.51,190.5,5.2479]
[1738865883759,0.03357079,190.51,190.48,0.03317754]
[1738865884354,7.24796356,190.58,190.52,5.2471]
[1738865884758,12.49376356,190.58,190.52,5.2471]
[1738865885060,7.24796356,190.58,190.48,21.42276727]
[1738865885263,7.24796356,190.58,190.49,3.1608]
[1738865885555,7.24796356,190.58,190.51,21.4567138]
[1738865885955,94.2235263,190.61,190.57,5.246]
[1738865886149,7.24796356,190.61,190.57,5.246]
[1738865886356,7.24796356,190.61,190.57,0.03475033]
[1738865887461,7.24796356,190.61,190.6,5.2452]
[1738865888261,7.24796356,190.61,190.58,1.6413]
[1738865889163,7.24796356,190.61,190.57,0.03475033]
[1738865889455,21.42276727,190.7,190.59,5.2454]
[1738865889961,21.42276727,190.7,190.63,0.04032937]
[1738865890261,5.2436,190.66,190.63,0.04032937]
[1738865890461,21.42276727,190.7,190.63,0.04032937]
[1738865890661,5.2432,190.68,190.63,0.04032937]
[1738865890860,21.42276727,190.7,190.63,0.04032937]
[1738865891266,5.2432,190.67,190.63,0.04032937]
[1738865891464,21.42276727,190.67,190.63,0.04032937]
[1738865891764,21.42276727,190.7,190.63,0.04032937]
[1738865892162,5.243,190.68,190.63,0.04032937]
[1738865892563,21.42276727,190.7,190.63,0.04032937]
[1738865892767,5.2426,190.7,190.63,5.28462937]
[1738865893160,52.14292151,190.73,190.63,0.04032937]
[1738865893361,5.2419,190.72,190.65,5.2437]
[1738865893963,5.2425,190.7,190.67,0.03511503]
[1738865894160,5.2425,190.7,190.58,1.6684]
[1738865894467,5.2425,190.7,190.65,0.0347642]
[1738865894768,5.2419,190.72,190.65,0.0347642]
[1738865895066,56.31802151,190.73,190.65,0.0347642]
[1738865895460,57.27982151,190.73,190.65,0.0347642]
[1738865895767,27.32616727,190.73,190.65,0.0347642]
[1738865896558,21.42276727,190.7,190.65,0.0347642]
[1738865896965,5.2444,190.63,190.51,24.67166727]
[1738865897165,21.42276727,190.67,190.51,24.67166727]
[1738865897871,21.42276727,190.64,190.51,3.2489]
[1738865898060,0.03892621,190.61,190.57,0.03762299]
[1738865898460,0.03892621,190.61,190.54,21.42276727]
[1738865898461,0.03520048,190.61,190.54,21.42276727]
[1738865898663,0.03520048,190.61,190.57,0.03609976]
[1738865900672,0.03520048,190.61,190.59,5.2454]
[1738865901367,0.03520048,190.61,190.57,0.03609976]
[1738865903771,5.2456,190.59,190.57,0.03609976]
[1738865903973,21.45796775,190.61,190.57,0.03609976]
[1738865904175,0.03520048,190.61,190.57,0.03609976]
[1738865904466,21.45796775,190.61,190.57,0.03609976]
[1738865904772,5.2457,190.58,190.57,0.03609976]
[1738865904973,21.45796775,190.61,190.57,0.03609976]
[1738865905465,0.03520048,190.61,190.57,0.03609976]
[1738865906066,0.03520048,190.61,190.57,5.28189976]
[1738865906468,0.03520048,190.61,190.57,0.03609976]
[1738865907775,21.45796775,190.61,190.57,0.03609976]
[1738865908176,5.2457,190.58,190.57,0.03609976]
[1738865908774,5.2467,190.55,190.47,5.2485]
[1738865908975,5.2467,190.55,190.46,1.6357]
[1738865909273,21.42276727,190.58,190.46,1.6357]
[1738865909473,21.42276727,190.58,190.48,5.2484]
[1738865909673,21.42276727,190.58,190.46,1.6357]
[1738865909875,21.45955573,190.55,190.51,0.03401694]
[1738865910077,1.6699,190.54,190.43,1.5846]
[1738865910373,5.2483,190.49,190.43,1.5846]
[1738865911077,5.2487,190.48,190.39,5.2509]
[1738865911378,5.2487,190.48,190.44,0.03914958]
[1738865911379,0.03564155,190.48,190.44,0.03914958]
[1738865912677,4.3,190.58,190.45,21.42276727]
[1738865912979,21.42276727,190.55,190.39,21.42276727]
[1738865913170,21.42276727,190.55,190.38,3.2302]
[1738865913970,0.0354056,190.48,190.45,5.28777505]
[1738865914481,5.2463,190.57,190.45,0.03847505]
[1738865914678,5.2463,190.57,190.45,21.42276727]
[1738865914879,5.2463,190.57,190.46,1.5859]
[1738865915175,7.24796356,190.58,190.48,21.42276727]
[1738865915476,7.24796356,190.58,190.52,5.2473]
[1738865915675,0.03404432,190.55,190.51,0.03454361]
[1738865916274,0.03404432,190.55,190.52,5.2471]
[1738865916781,0.03404432,190.55,190.53,5.2469]
[1738865916982,0.03404432,190.55,190.51,0.03454361]
[1738865917570,0.03404432,190.55,190.51,21.45731088]
[1738865917775,106.52655777,190.64,190.51,21.45731088]
[1738865918276,5.2447,190.62,190.51,21.42276727]
[1738865918874,5.2447,190.62,190.55,0.0348984]
[1738865919881,106.52655777,190.64,190.55,0.0348984]
[1738865920481,127.94932504,190.64,190.55,0.0348984]
[1738865922889,5.2451,190.61,190.55,0.0348984]
[1738865923085,127.94932504,190.64,190.55,0.0348984]
[1738865923686,5.2453,190.6,190.55,0.0348984]
[1738865923989,127.94932504,190.64,190.55,0.0348984]
[1738865924386,106.52655777,190.64,190.55,0.0348984]
[1738865924784,106.52655777,190.64,190.58,5.2457]
[1738865924989,111.77065777,190.64,190.51,21.42276727]
[1738865925190,111.77065777,190.64,190.59,0.03793616]
[1738865925391,106.52655777,190.64,190.59,0.03793616]
[1738865925590,5.2449,190.61,190.59,0.03793616]
[1738865927190,5.2447,190.62,190.59,0.03793616]
[1738865927587,106.52655777,190.64,190.59,0.03793616]
[1738865927791,106.52655777,190.64,190.59,5.28333616]
[1738865927992,106.52655777,190.64,190.59,0.03793616]
[1738865928593,21.42276727,190.67,190.59,0.03793616]
[1738865928999,21.42276727,190.64,190.59,0.03793616]
[1738865929299,5.2451,190.61,190.59,0.03793616]
[1738865929695,21.42276727,190.64,190.59,0.03793616]
[1738865930096,21.42276727,190.61,190.5,1.6431]
[1738865930297,21.42276727,190.61,190.51,5.2475]
[1738865930495,5.2457,190.58,190.5,1.6431]
[1738865930795,4.28,190.6,190.51,5.2476]
[1738865930995,4.28,190.6,190.5,1.6431]
[1738865931189,5.2804384,190.57,190.53,0.03915082]
[1738865932501,5.2466,190.55,190.53,0.03915082]
[1738865932898,0.0342384,190.57,190.53,0.03915082]
[1738865937103,5.2803384,190.57,190.53,0.03915082]
[1738865940107,0.0342384,190.57,190.53,0.03915082]
[1738865942202,0.0342384,190.57,190.54,5.2468]
[1738865942409,0.0342384,190.57,190.53,0.03915082]
[1738865942803,0.0342384,190.57,190.56,5.2463]
[1738865943004,0.0342384,190.57,190.54,1.6089]
[1738865944607,0.0342384,190.57,190.56,5.2463]
[1738865944803,28.99185424,190.62,190.54,14.98727059]
[1738865945110,20.62633415,190.66,190.6,5.2451]
[1738865945499,20.62633415,190.66,190.54,14.98727059]
[1738865945700,20.62633415,190.66,190.54,1.6089]
[1738865945903,13.37837059,190.6,190.54,1.6089]
[1738865946108,13.37837059,190.6,190.58,0.03570653]
[1738865946306,13.37837059,190.6,190.52,3.3134]
[1738865946507,13.37837059,190.6,190.57,0.04010107]
[1738865947108,5.2455,190.59,190.57,0.04010107]
[1738865947501,13.37837059,190.6,190.57,0.04010107]
[1738865947706,5.2457,190.58,190.57,0.04010107]
[1738865948110,4.26,190.59,190.48,5.2485]
[1738865948415,13.37837059,190.53,190.46,3.2104]
[1738865948711,5.2471,190.53,190.46,3.2104]
[1738865948908,21.43767283,190.54,190.46,3.2104]
[1738865949103,21.43767283,190.54,190.39,273.40673956]
[1738865949316,0.03421516,190.52,190.48,0.03983571]
[1738865950415,85.34808132,190.66,190.55,5.2464]
[1738865950605,7.24796356,190.58,190.55,5.2464]
[1738865950803,7.24796356,190.58,190.51,1.6743]
[1738865951412,7.24796356,190.58,190.53,0.04019368]
[1738865953612,12.00019857,190.62,190.53,0.04019368]
[1738865954019,12.00019857,190.62,190.56,5.246]
[1738865954317,12.00019857,190.62,190.52,21.43767283]
[1738865954512,28.99185424,190.63,190.57,0.04028151]
[1738865954708,5.2447,190.62,190.57,0.04028151]
[1738865954917,28.99185424,190.63,190.57,0.04028151]
[1738865955217,28.99185424,190.63,190.59,5.2454]
[1738865955518,28.99185424,190.63,190.57,0.04028151]
[1738865956116,5.2441,190.64,190.57,0.04028151]
[1738865956313,21.43767283,190.67,190.57,0.04028151]
[1738865956709,5.2449,190.62,190.57,0.04028151]
[1738865957115,21.43767283,190.67,190.57,0.04028151]
[1738865957317,5.2457,190.59,190.57,0.04028151]
[1738865958017,5.2457,190.58,190.57,0.04028151]
[1738865958716,26.68337283,190.58,190.57,0.04028151]
[1738865958915,21.43767283,190.58,190.5,1.6012]
[1738865959318,25.69767283,190.58,190.5,1.6012]
[1738865959517,25.69767283,190.58,190.49,1.5209]
[1738865960022,0.03462458,190.55,190.52,0.03550772]
[1738865962019,0.03462458,190.55,190.53,5.247]
[1738865962321,0.03462458,190.55,190.52,0.03550772]
[1738865963817,5.2471,190.54,190.52,0.03550772]
[1738865964017,21.47229741,190.55,190.52,0.03550772]
[1738865964518,5.2471,190.54,190.52,0.03550772]
[1738865964718,21.47229741,190.55,190.44,1.5888]
[1738865964911,21.43767283,190.51,190.44,1.5888]
[1738865965115,21.43767283,190.51,190.41,1.569]
[1738865966015,0.0348476,190.48,190.44,0.03366654]
[1738865966418,21.43767283,190.54,190.41,1.569]
[1738865966719,0.03877445,190.48,190.44,0.03371028]
[1738865966911,0.03877445,190.48,190.47,5.2487]
[1738865967114,54.68952707,190.58,190.44,0.03565709]
[1738865967314,54.68952707,190.58,190.41,1.569]
[1738865967514,0.03873333,190.53,190.49,0.034908]
[1738865968919,0.03873333,190.53,190.5,5.2479]
[1738865969518,0.03873333,190.53,190.49,5.283008]
[1738865970018,0.03873333,190.53,190.49,0.034908]
[1738865970718,13.39802915,190.52,190.49,0.034908]
[1738865971319,0.03873333,190.53,190.49,0.034908]
[1738865972019,13.39802915,190.52,190.49,0.034908]
[1738865972521,0.03873333,190.53,190.49,0.034908]
[1738865972720,13.39802915,190.52,190.49,0.034908]
[1738865972923,18.64552915,190.52,190.49,0.034908]
[1738865973118,13.39802915,190.52,190.49,0.034908]
[1738865974127,0.03873333,190.53,190.49,0.034908]
[1738865975824,0.03873333,190.53,190.5,5.2477]
[1738865976626,0.03873333,190.53,190.52,5.2473]
[1738865977020,28.99185424,190.58,190.5,4.8209]
[1738865977920,18.64292915,190.61,190.5,4.8209]
[1738865978124,0.03474584,190.56,190.5,4.8209]
[1738865978326,0.03474584,190.56,190.54,5.2467]
[1738865978527,0.03474584,190.56,190.54,5.28476432]
[1738865979122,0.03474584,190.56,190.54,0.03806432]
[1738865980227,5.28114584,190.56,190.54,0.03806432]
[1738865980726,0.03474584,190.56,190.54,0.03806432]
[1738865985024,0.03474584,190.56,190.54,5.28476432]
[1738865985622,0.03474584,190.56,190.55,5.2465]
[1738865986430,0.03474584,190.56,190.54,5.28476432]
[1738865986631,0.03474584,190.56,190.54,0.03806432]
[1738865987033,0.03474584,190.56,190.55,5.2465]
[1738865987927,33.21185424,190.64,190.57,5.2459]
[1738865988327,5.2442,190.64,190.57,5.2459]
[1738865988530,45.23632874,190.66,190.53,21.42293318]
[1738865988732,45.23632874,190.66,190.59,5.2453]
[1738865989027,41.01632874,190.66,190.53,21.42293318]
[1738865989233,41.01632874,190.66,190.61,0.03941167]
[1738865989432,62.43926192,190.66,190.61,0.03941167]
[1738865990733,5.2442,190.64,190.61,0.03941167]
[1738865994335,5.2438,190.65,190.61,0.03941167]
[1738865994536,50.41478742,190.69,190.62,5.2446]
[1738865994836,54.63478742,190.69,190.61,0.03941167]
[1738865995040,5.2431,190.68,190.61,5.28421167]
[1738865995739,5.2434,190.67,190.61,5.28421167]
[1738865996736,5.2438,190.65,190.61,0.03941167]
[1738865997338,5.2435,190.66,190.61,0.03941167]
[1738866000842,25.64293318,190.69,190.61,0.03941167]
[1738866001544,21.42293318,190.63,190.5,197.8209]
[1738866001744,21.42293318,190.53,190.41,214.97415846]
[1738866001945,21.42293318,190.5,190.41,214.97415846]
[1738866002141,21.42293318,190.5,190.4,21.97415846]
[1738866002348,4.22,190.51,190.4,21.97415846]
[1738866002746,0.03675334,190.47,190.44,0.03399213]
[1738866002947,0.03675334,190.47,190.44,4.79599213]
[1738866003247,4.22,190.51,190.44,4.79599213]
[1738866003448,4.22,190.51,190.46,5.2489]
[1738866004348,4.22,190.51,190.44,10.04529213]
[1738866004545,4.22,190.51,190.44,4.79599213]
[1738866005043,4.22,190.51,190.44,1.59879213]
[1738866005044,13.39295999,190.5,190.44,1.59879213]
[1738866005350,13.39295999,190.47,190.31,13.39295999]
[1738866005547,13.39295999,190.43,190.32,1.6245]
[1738866005848,13.39295999,190.46,190.34,13.39295999]
[1738866006043,13.39295999,190.46,190.35,1.6625]
[1738866006551,0.03920337,190.42,190.39,0.03475205]
[1738866007443,0.03920337,190.42,190.41,5.2503]
[1738866008139,0.03920337,190.42,190.39,0.03475205]
[1738866011855,4.22,190.5,190.39,13.42771204]
[1738866012053,4.22,190.5,190.43,5.2498]
[1738866012354,17.61295999,190.53,190.4,1.5579]
[1738866012555,17.61295999,190.53,190.41,1.6625]
[1738866012746,17.61295999,190.53,190.45,0.03388985]
[1738866014450,12.0244745,190.59,190.49,5.2481]
[1738866014451,18.63925999,190.56,190.49,5.2481]
[1738866014649,13.39295999,190.56,190.45,13.39295999]
[1738866014953,13.39295999,190.56,190.51,0.03562847]
[1738866015157,4.22,190.57,190.51,0.03562847]
[1738866015357,5.2463,190.56,190.51,0.03562847]
[1738866016456,5.2458,190.58,190.51,0.03562847]
[1738866017452,13.39295999,190.59,190.51,0.03562847]
[1738866018256,4.22,190.58,190.51,0.03562847]
[1738866019360,5.2462,190.57,190.51,0.03562847]
[1738866019559,4.22,190.58,190.51,0.03562847]
[1738866019954,9.4659,190.58,190.51,0.03562847]
[1738866020160,4.22,190.58,190.51,0.03562847]
[1738866022656,13.39295999,190.59,190.51,0.03562847]
[1738866022863,17.61295999,190.59,190.51,5.28302847]
[1738866023561,5.2457,190.58,190.51,5.28302847]
[1738866025464,13.39295999,190.59,190.51,0.03562847]
[1738866025661,5.246,190.57,190.51,5.28322847]
[1738866026461,5.246,190.57,190.51,0.03562847]
[1738866026662,5.2466,190.55,190.51,0.03562847]
[1738866029565,18.63925999,190.56,190.51,5.28312847]
[1738866030068,5.2459,190.58,190.53,5.247]
[1738866030261,13.39295999,190.59,190.53,5.247]
[1738866030465,13.39295999,190.56,190.54,0.03871146]
[1738866031266,13.39295999,190.56,190.46,1.5347]
[1738866031459,13.39295999,190.51,190.46,6.7834]
[1738866031666,13.39295999,190.51,190.46,1.5347]
[1738866032165,13.39295999,190.54,190.46,1.5347]
[1738866032367,0.0356023,190.5,190.47,0.03467284]
[1738866032668,13.39295999,190.57,190.5,5.2477]
[1738866032864,5.2463,190.56,190.5,5.2477]
[1738866033068,13.39295999,190.54,190.52,0.03636554]
[1738866037267,0.03520646,190.55,190.52,0.03636554]
[1738866040372,7.24796356,190.62,190.52,0.03636554]
[1738866040573,7.24796356,190.62,190.53,13.39295999]
[1738866042073,7.24796356,190.63,190.58,5.2455]
[1738866042576,7.24796356,190.63,190.59,0.03308645]
[1738866042875,7.24796356,190.63,190.56,13.39295999]
[1738866043072,7.24796356,190.63,190.59,0.03800677]
[1738866044974,26.98819068,190.64,190.59,0.03800677]
[1738866044975,5.2443,190.64,190.59,0.03800677]
[1738866045877,5.2443,190.64,190.59,5.28340677]
[1738866046175,5.2443,190.64,190.59,0.03800677]
[1738866046378,13.39295999,190.63,190.59,0.03800677]
[1738866046777,13.39295999,190.63,190.59,0.03535974]
[1738866047079,5.2446,190.62,190.59,0.03535974]
[1738866047875,13.39295999,190.63,190.59,0.03535974]
[1738866049385,13.39295999,190.66,190.59,0.03535974]
[1738866049583,13.39295999,190.66,190.55,13.39295999]
[1738866049879,13.39295999,190.66,190.62,5.2445]
[1738866050277,9.4629,190.68,190.62,5.2445]
[1738866050680,4.22,190.68,190.62,5.2445]
[1738866051578,9.463,190.68,190.62,5.2445]
[1738866052289,9.463,190.68,190.61,0.03503341]
[1738866052591,9.463,190.68,190.61,5.27983341]
[1738866055489,5.243,190.68,190.61,5.27983341]
[1738866056786,7.24796356,190.74,190.61,13.4279934]
[1738866056985,7.24796356,190.74,190.64,13.39295999]
[1738866057187,7.24796356,190.74,190.68,5.2427]
[1738866057981,7.24796356,190.74,190.66,0.03649853]
[1738866058181,13.39295999,190.69,190.55,4.8608]
[1738866058380,13.39295999,190.6,190.48,13.39295999]
[1738866058687,13.39295999,190.54,190.43,4.854]
[1738866059190,13.39295999,190.57,190.45,13.39295999]
[1738866059390,0.0341355,190.5,190.48,5.2484]
[1738866059585,13.39295999,190.57,190.48,5.2484]
[1738866059891,0.03463066,190.51,190.48,5.2484]
[1738866060390,0.03463066,190.51,190.49,5.2481]
[1738866060789,0.03463066,190.51,190.47,0.04017243]
[1738866064594,18.67519065,190.51,190.47,0.04017243]
[1738866064791,13.42759065,190.51,190.47,0.04017243]
[1738866065494,0.03463066,190.51,190.47,0.04017243]
[1738866067197,0.03463066,190.51,190.47,5.28867243]
[1738866067397,0.03463066,190.51,190.47,0.04017243]
[1738866069192,13.39295999,190.48,190.36,13.39295999]
[1738866069394,13.39295999,190.45,190.35,4.8147]
[1738866070402,0.03864788,190.42,190.38,0.03372195]
[1738866071401,0.03864788,190.42,190.39,5.2509]
[1738866073007,0.03864788,190.42,190.41,5.2504]
[1738866073400,13.39295999,190.51,190.39,13.39295999]
[1738866073604,4.22,190.53,190.42,13.39295999]
[1738866074206,5.2475,190.52,190.45,5.2492]
[1738866074506,0.03901006,190.5,190.47,0.03573545]
[1738866074806,0.03901006,190.5,190.47,5.28433545]
[1738866075508,0.03901006,190.5,190.48,5.2484]
[1738866075809,0.03901006,190.5,190.47,0.03573545]
[1738866076105,4.22,190.59,190.48,13.39295999]
[1738866076306,13.39295999,190.6,190.48,13.39295999]
[1738866077109,13.39295999,190.6,190.52,0.03632798]
[1738866077506,13.39295999,190.57,190.52,0.03632798]
[1738866077704,5.2465,190.55,190.52,0.03632798]
[1738866078105,13.39295999,190.57,190.52,0.03632798]
[1738866078302,13.39295999,190.54,190.52,0.03632798]
[1738866081504,13.39295999,190.57,190.52,0.03632798]
[1738866082211,18.63975999,190.54,190.52,0.03632798]
[1738866082911,13.39295999,190.54,190.45,1.5432]
[1738866083108,13.39295999,190.51,190.45,1.5432]
[1738866083407,13.39295999,190.51,190.36,13.39295999]
[1738866083603,13.39295999,190.51,190.39,13.39295999]
[1738866083807,18.64065999,190.51,190.43,5.2496]
[1738866084003,13.39295999,190.51,190.39,13.39295999]